Cogmind - Beta 14 @@@ ROGUE MODE // 2024.08.12 @ 12:33:57 Player: RedTheSorceress Result: Destroyed by G-47 Trooper with Particle Gun Performance ------------- Evolutions (2) 1000 Regions Visited (5) 1000 Robots Destroyed (0) 0 Value Destroyed (0) 0 Prototype IDs (0) 0 Alien Tech Used (0) 0 Bonus (470) 470 TOTAL SCORE: 2470 Bonus ------- Pacifist 470 Cogmind --------- Core Integrity 0/550 Matter 238/300 Energy 100/100 System Corruption 2% Temperature Cool (10) Movement Flying (40) Location -8/Storage Parts ------- > --- POWER (1) -------- (None) > --- PROPULSION (4) --- Flight Unit > --- UTILITY (4) ------ System Shield > --- WEAPON (2) ------- (None) > --- INVENTORY (5) ---- System Shield System Shield Peak State ------------ > --- POWER ------------ Light Ion Engine > --- PROPULSION ------- Light Treads Light Treads Wheel > --- UTILITY ---------- Advanced Weight Redist. System System Shield System Shield > --- WEAPON ----------- Medium Laser > --- INVENTORY -------- System Shield System Shield [Rating: 14] Favorites ----------- Power Light Ion Engine Engine Light Ion Engine Propulsion Light Treads Treads Light Treads Leg Aluminum Leg Wheel Wheel Flight Unit Flight Unit Utility System Shield Device Advanced Weight Redist. System Storage Small Storage Unit Hackware System Shield Weapon Medium Laser Energy Gun Medium Laser Build | -11 -10 -9 -9 -8 -8 ------- Run | Yrd Mat Mat Min Mat Sto Slots Evolved 4 | . . 2 . 2 . Power . | . . . . . . Propulsion 2 | . . 2 . . . Utility 2 | . . . . 2 . Weapon . | . . . . . . Parts Attached 11 | 2 . 2 . 3 4 Power 1 | . . . . 1 . Engine 1 | . . . . 1 . Core . | . . . . . . Reactor . | . . . . . . Propulsion 7 | 2 . 2 . 1 2 Treads 3 | 2 . . . 1 . Leg . | . . . . . . Wheel 2 | . . 2 . . . Hover . | . . . . . . Flight 2 | . . . . . 2 Utility 3 | . . . . 1 2 Device 1 | . . . . 1 . Storage . | . . . . . . Processor . | . . . . . . Hackware 2 | . . . . . 2 Protection . | . . . . . . Artifact . | . . . . . . Weapon . | . . . . . . Energy Gun . | . . . . . . Energy Cannon . | . . . . . . Ballistic Gun . | . . . . . . Ballistic Cannon . | . . . . . . Launcher . | . . . . . . Special Weapon . | . . . . . . Impact Weapon . | . . . . . . Slashing Weapon . | . . . . . . Piercing Weapon . | . . . . . . Special Melee Weapon . | . . . . . . Unidentified Prototypes . | . . . . . . Parts Lost 8 | . . . . . 8 Power 1 | . . . . . 1 Propulsion 4 | . . . . . 4 Utility 2 | . . . . . 2 Weapon 1 | . . . . . 1 Highest Loss Streak 8 | . . . . . 8 To Critical Strikes 1 | . . . . . 1 Average Slot Usage (%) 51 | . 57 55 66 63 40 Engine 3 | . . . . 7 4 Treads 15 | . 28 22 22 18 9 Wheel 9 | . . 11 22 15 4 Flight 1 | . . . . . 2 Device 4 | . . . . 7 4 Hackware 5 | . . . . . 10 Energy Gun 12 | . 28 22 22 15 4 Peak Build Rating 14 | 6 4 7 7 11 14 Average Rating 7 | 5 4 5 7 9 7 On Entrance 6 | 6 4 4 7 7 9 Naked Turns . | . . . . . . Heaviest Build 6 | 3 3 3 3 6 5 Greatest Support 12 | 3 3 3 3 12 12 Greatest Overweight (x) . | . . . . . . Average Overweight (x) . | . . . . . . Largest Inventory Capacity 8 | 8 5 5 5 5 5 Average Capacity 5 | 7 5 5 5 5 5 Most Carried 6 | 6 4 5 5 5 4 Average Carried 3 | 4 4 4 5 4 2 Final Capacity 5 | 5 5 5 5 5 5 Final Carried 5 | 4 4 5 5 4 2 Class Distribution -------------------- 84% | Mutant 15% | Hacker-Mutant Dominant Class ---------------- Mutant | -10/Materials Mutant | -9/Materials Mutant | -9/Mines Mutant | -8/Materials Mutant | -8/Storage Resources | -11 -10 -9 -9 -8 -8 ----------- Run | Yrd Mat Mat Min Mat Sto Matter Collected 187 | 169 . . . . 18 Remotely . | . . . . . . Salvage Created . | . . . . . . Parts . | . . . . . . Haulers Intercepted . | . . . . . . Recyclers Shooed . | . . . . . . Parts Field Recycled . | . . . . . . Retrieved Matter . | . . . . . . Parts Self-Destructed . | . . . . . . Prevented . | . . . . . . Kills | -11 -10 -9 -9 -8 -8 ------- Run | Yrd Mat Mat Min Mat Sto Combat Hostiles Destroyed . | . . . . . . Classes Destroyed . | . . . . . . Best Kill Streak . | . . . . . . Combat Bots Only . | . . . . . . Max Kills in Single Turn . | . . . . . . Gunslinging . | . . . . . . Exploded . | . . . . . . Melee . | . . . . . . Uniques/NPCs Destroyed . | . . . . . . Combat | -11 -10 -9 -9 -8 -8 -------- Run | Yrd Mat Mat Min Mat Sto Hostile Shots Fired 149 | . 7 . . . 142 Missed 48 | . 5 . . . 43 Damage Taken 1043 | . 22 . . . 1021 Core 574 | . 11 . . . 563 Absorbed by Shields . | . . . . . . Core Remaining (%) 98 | 100 95 . 100 . . Volleys Fired . | . . . . . . Largest . | . . . . . . Hottest . | . . . . . . Shots Fired . | . . . . . . Gun . | . . . . . . Cannon . | . . . . . . Launcher . | . . . . . . Special . | . . . . . . Kinetic . | . . . . . . Thermal . | . . . . . . Explosive . | . . . . . . Electromagnetic . | . . . . . . Robot Hit Streak . | . . . . . . Robot Miss Streak . | . . . . . . Penetration Max . | . . . . . . Secondary Targets . | . . . . . . Shots Hit Robots . | . . . . . . Core Hits 1 | . . . . . 1 Critical Kills . | . . . . . . Critical Parts Destroyed . | . . . . . . Critical Strikes . | . . . . . . Melee Attacks . | . . . . . . Impact . | . . . . . . Slashing . | . . . . . . Piercing . | . . . . . . Sneak Attacks . | . . . . . . Combat Hostiles . | . . . . . . Follow-up Attacks . | . . . . . . Damage Inflicted 17 | . . . . . 17 Guns . | . . . . . . Cannons . | . . . . . . Explosions . | . . . . . . Melee . | . . . . . . Ramming 17 | . . . . . 17 Kinetic . | . . . . . . Thermal . | . . . . . . Explosive . | . . . . . . Electromagnetic . | . . . . . . Impact . | . . . . . . Slashing . | . . . . . . Piercing . | . . . . . . Highest Corruption 2 | . . . . . 2 Average Corruption 2 | . . . . . 2 Corruption Purged . | . . . . . . Corruption Blocked . | . . . . . . Overload Shots . | . . . . . . Overflow Damage . | . . . . . . Projectiles . | . . . . . . Explosions . | . . . . . . Melee . | . . . . . . Knockbacks . | . . . . . . Impact . | . . . . . . Kinetic . | . . . . . . Secondary . | . . . . . . Self-Inflicted Damage 8 | . . . . . 8 Shots . | . . . . . . Rammed 6 | . . . . . 6 Targets Rammed 6 | . . . . . 6 Kicked . | . . . . . . Crushed . | . . . . . . Highest Temperature 5 | . . . . . 5 Average Temperature 5 | . . . . . 5 Received Heat Transfer 246 | . 12 . . . 234 Siege Activations . | . . . . . . Robots Corrupted . | . . . . . . Combat Hostiles . | . . . . . . Parts Fried . | . . . . . . Impact Corruptions . | . . . . . . Robots Melted . | . . . . . . Combat Hostiles . | . . . . . . Parts Melted . | . . . . . . Heat Transferred . | . . . . . . Parts Sabotaged . | . . . . . . Parts Stolen . | . . . . . . Parts Stripped . | . . . . . . Power Chain Reactions . | . . . . . . Alert | -11 -10 -9 -9 -8 -8 ------- Run | Yrd Mat Mat Min Mat Sto Peak Influence 192 | . 30 12 4 16 192 Initial 12 | . . 12 4 1 6 Average 44 | . 28 12 4 5 86 Maximum Alert Level . | . . . . . . Low Security (%) 100 | 100 100 100 100 100 100 Level 1 . | . . . . . . Level 2 . | . . . . . . Level 3 . | . . . . . . Level 4 . | . . . . . . Level 5 . | . . . . . . High Security . | . . . . . . Max Security . | . . . . . . Squads Dispatched 4 | . 1 . . 1 2 Investigation 1 | . 1 . . . . Extermination . | . . . . . . Reinforcement 3 | . . . . 1 2 Assault . | . . . . . . Garrison . | . . . . . . Intercept . | . . . . . . Searches Triggered . | . . . . . . Construction Impeded . | . . . . . . Haulers Reinforced . | . . . . . . Active Scanning Responses . | . . . . . . Cargo Convoy Interrupts . | . . . . . . Stealth | -11 -10 -9 -9 -8 -8 --------- Run | Yrd Mat Mat Min Mat Sto Distress Signals 3 | . . . . . 3 Communications Jammed . | . . . . . . Distress Signals . | . . . . . . Times Spotted 30 | . 2 . . . 28 Peak Tracking Total 17 | . 2 . . . 17 Tactical Retreats 3 | . . . . . 3 Traps | -11 -10 -9 -9 -8 -8 ------- Run | Yrd Mat Mat Min Mat Sto Traps Triggered 1 | . . . . 1 . Indirectly . | . . . . . . Trap Hack Attempts . | . . . . . . Triggered . | . . . . . . Disarmed . | . . . . . . Reprogrammed . | . . . . . . Reused . | . . . . . . Traps Extracted . | . . . . . . Installed . | . . . . . . Triggered . | . . . . . . Machines | -11 -10 -9 -9 -8 -8 ---------- Run | Yrd Mat Mat Min Mat Sto Machines Disabled . | . . . . . . Max in Single Turn . | . . . . . . Machines Repaired . | . . . . . . Machines Dismantled . | . . . . . . Machines Sabotaged . | . . . . . . Overloaded Fab Kills . | . . . . . . Hacking | -11 -10 -9 -9 -8 -8 --------- Run | Yrd Mat Mat Min Mat Sto Machines Accessed 2 | . 1 . . . 1 Terminals 1 | . . . . . 1 Fabricators . | . . . . . . Repair Stations . | . . . . . . Recycling Units 1 | . 1 . . . . Scanalyzers . | . . . . . . Garrison Access . | . . . . . . Total Hacks 4 | . 1 . . . 3 Successful 2 | . 1 . . . 1 Failed 2 | . . . . . 2 Catastrophic . | . . . . . . Database Lockouts . | . . . . . . Manual 4 | . 1 . . . 3 Terminals 3 | . . . . . 3 Fabricators . | . . . . . . Repair Stations . | . . . . . . Recycling Units 1 | . 1 . . . . Scanalyzers . | . . . . . . Garrison Access . | . . . . . . Terminal Hacks . | . . . . . . Fabricator Hacks . | . . . . . . Repair Station Hacks . | . . . . . . Recycling Unit Hacks . | . . . . . . Scanalyzer . | . . . . . . Garrison Access Hacks . | . . . . . . Unauthorized Hacks 2 | . 1 . . . 1 Terminals 1 | . . . . . 1 Assimilate 1 | . . . . . 1 Fabricators . | . . . . . . Repair Stations . | . . . . . . Recycling Units 1 | . 1 . . . . Tunnel 1 | . 1 . . . . Scanalyzers . | . . . . . . Garrison Access . | . . . . . . Data Cores Recovered . | . . . . . . Used . | . . . . . . Hacking Detections 1 | . . . . . 1 Full Trace Events . | . . . . . . Feedback Events . | . . . . . . Feedback Blocked . | . . . . . . Robot Schematics Acquired . | . . . . . . Robots Built . | . . . . . . Authchips . | . . . . . . Time . | . . . . . . Total Robot Build Rating . | . . . . . . Part Schematics Acquired . | . . . . . . Parts Built . | . . . . . . Authchips . | . . . . . . Time . | . . . . . . Total Part Build Rating . | . . . . . . Parts Repaired . | . . . . . . Time . | . . . . . . Parts Recycled . | . . . . . . Recycled Matter . | . . . . . . Retrieved Matter . | . . . . . . Retrieved Components . | . . . . . . Parts Scanalyzed . | . . . . . . Part Schematics Acquired . | . . . . . . Parts Damaged . | . . . . . . Bothacking | -11 -10 -9 -9 -8 -8 ------------ Run | Yrd Mat Mat Min Mat Sto Used RIF Installer . | . . . . . . Robots Hacked . | . . . . . . Non-combat . | . . . . . . Combat . | . . . . . . Robot Hacks Applied . | . . . . . . Relay Couplers Released . | . . . . . . Fabnet Peak Effective % . | . . . . . . Robots Rewired . | . . . . . . Allies Hacked . | . . . . . . Hacks Repelled . | . . . . . . Allies | -11 -10 -9 -9 -8 -8 -------- Run | Yrd Mat Mat Min Mat Sto Total Allies 1 | . . . . . 1 Largest Group 1 | . . . . . 1 Highest-Rated Group 10 | . . . . . 10 Highest-Rated Ally 10 | . . . . . 10 Total Orders . | . . . . . . Ally Attacks . | . . . . . . Total Damage . | . . . . . . Kills . | . . . . . . Allies Corrupted . | . . . . . . Allies Melted . | . . . . . . Intel | -11 -10 -9 -9 -8 -8 ------- Run | Yrd Mat Mat Min Mat Sto Robot Analysis Total . | . . . . . . Derelict Logs Recovered . | . . . . . . Drone Launches . | . . . . . . Drone Recoveries . | . . . . . . Exploration | -11 -10 -9 -9 -8 -8 ------------- Run | Yrd Mat Mat Min Mat Sto Turns Passed 235 | 5 21 13 20 69 107 Spaces Moved 428 | 1 42 13 40 130 202 Core 359 | 1 42 13 40 130 133 Treads . | . . . . . . Legs . | . . . . . . Wheels . | . . . . . . Hover . | . . . . . . Flight 69 | . . . . . 69 Fastest Speed 40 | 50 50 50 50 50 40 Average Speed 48 | 50 50 50 50 50 46 Slowest Speed 50 | 50 50 50 50 50 50 Overloaded Moves . | . . . . . . Propulsion Burnouts . | . . . . . . Robots Hopped 3 | . . . . . 3 Cave-ins Triggered . | . . . . . . Exploration Rate (%) 19 | 2 11 2 13 25 63 Regions Visited 5 Branch Regions 2 Pre-discovered Areas 1 | . 1 . . . . Known Exits Taken . | . . . . . . Unknown Exits Taken 5 | 1 1 1 1 1 . Scrap Searched . | . . . . . . Spaces Dug . | . . . . . . Terrain Destroyed . | . . . . . . Melee . | . . . . . . Projectile . | . . . . . . AOE . | . . . . . . Terrain Rammed . | . . . . . . Walls Destroyed . | . . . . . . Machines Disabled . | . . . . . . Actions | -11 -10 -9 -9 -8 -8 --------- Run | Yrd Mat Mat Min Mat Sto Total 448 | 6 41 19 39 132 211 Wait . | . . . . . . Move 417 | . 41 12 39 129 196 Hop 3 | . . . . . 3 Pick Up 6 | . . 4 . . 2 Fast Attach 2 | . . . . 2 . Attach 9 | 2 . 2 . 1 4 Detach . | . . . . . . Swap . | . . . . . . Drop 5 | 4 . 1 . . . Fire . | . . . . . . Melee . | . . . . . . Ram 5 | . . . . . 5 Kick . | . . . . . . Crush 1 | . . . . . 1 Escape Stasis . | . . . . . . Rewire . | . . . . . . Trap . | . . . . . . Miscellaneous . | . . . . . . Route ------- -11/Scrapyard -10/Materials -9/Materials -9/Mines -8/Materials -8/Storage History --------- Turn | Location | Event 6 | -11/Scrapyard | Discovered new exit (range 0) 6 | -11/Scrapyard | Entered Materials 20 | -10/Materials | Discovered new exit (range 14) 27 | -10/Materials | Entered another Materials area 27 | -9/Materials | Evolved 2 slots: Propulsion x2 27 | -9/Materials | Discovered new exit (range 9) 40 | -9/Materials | Entered Mines 55 | -9/Mines | Discovered new exit (range 12) 56 | -9/Mines | Assembled infested the area 60 | -9/Mines | Entered Materials 60 | -8/Materials | Evolved 2 slots: Utility x2 122 | -8/Materials | Discovered new exit (range 16) 129 | -8/Materials | Entered Storage 191 | -8/Storage | Core integrity fell below 50% 211 | -8/Storage | Core integrity fell below 20% 236 | -8/Storage | Destroyed by G-47 Trooper with Particle Gun Last Messages --------------- 00185_ Critical hit (Destroy). 00185_ Lgt. Treads destroyed. 00185_ Wheel destroyed. 00186_ Slammed into S-10 Pest. 00186_ Adv. Weight Redist. System destroyed. 00187_ Slammed into S-10 Pest. 00187_ S-10 Pest destroyed. 00188_ Acquired Flight Unit. 00189_ Acquired 18 matter. 00190_ Acquired Flight Unit. 00190_ K-01 Serf collects debris. 00200_ Slammed into G-47 Trooper. 00200_ Destabilizing: System corrupted (+2). 00201_ Slammed into A-02 Transporter. 00202_ W-25 Informer sends out distress signal. 00204_ Critical hit (Burn: +37). 00204_ Slammed into G-47 Trooper. 00209_ Flight Unit destroyed. 00220_ K-01 Serf collects debris. 00234_ Critical hit (Burn: +37). Map ----- +----------------------------------------------------+ | "#?# """ #????????????????????????????? | | "#?# """ #????????????????????????????? | | "??# """ ##???????????????????????????? | | ???# #???????????????????????????? | | ???# #????????????????????????????? | | ????? ?????????????????????????????? | | #######+#??????????????????????????????? | | ########???????????????????????? | | ## #???????????????????????? | | ## "#???????????????????????? | | ^ # T#????????? ???????????? | | ^ / "#????????? #??????????? | | # #????????? #??????????? | | ##########! #????????? #??????????? | | ?????????# #???????? #??????????? | | ?????????########???????? #??????????? | | ????????????????????????? #??????????? | | ????????????????????????# a/??????????? | | ????????????????????????# #??????????? | | ????????????????????????# #??????????? | | ????????????????????????# #??????????? | | ????????????????????????# #??????????? | | ????????????????????????# #??????????? | | ????????????????????????# #??????????? | | ????????????????????????# #??????????? | | ????????????????????????#@ #??????????? | | ????????????????????????# #??????????? | | ????????????????????????# #??????????? | | ????????????????????????# a #??????????? | | ????????????????????????# #??????????? | | ????????????????????????# g #??????????? | | ????????????????????????# #??????????? | | ???????????????????"????# #??????????? | | ?????###???????????"????# #??????????? | | ????? ??????#???? ????# #??????????? | | #???# ??????#/###+##### #??????????? | | #???# ??????# #??????????? | | ##### "??????+ #??????????? | | """## "??????# #??????????? | | R"## "??????###### #######??????????? | | """## ????????????# #????????????????? | | ##### ????????????# #????????????????? | | #???#+##+#??######## #???? ?????????? | | ##### #### #??"" ? ???????? | | " # "Y" ! #?????? | | ######## """ + #??????? | | ??????###+### """ ## """ ]// #??????? | | ??????# # """ #???"" ]/? ???????? | | ??????# # #????? //?????????? | | ??????# # #?????????????????? | +----------------------------------------------------+ Best States ------------- Heat Dissipation 31 Energy Generation 10 Energy Capacity 125 Matter Stores 249 Matter Capacity 300 Sight Range 16 Terrain Scan Density 10 Additional Mass Support 9 Evasion (%) 62 Defensive Hacking 20 Item Schematics ----------------- None Robot Schematics ------------------ None Fabricated ------------ Nothing Alien Tech Used ----------------- None Achievements -------------- None Challenges ------------ None Game ------ Seed BattleDisruptionRedirector Manual? 0 Play Time 00:08:49 Cumulative 800.2 hours Start 2024.08.12 @ 12:28:08 End 2024.08.12 @ 12:33:57 Sessions 1 Manual Loads 0 Difficulty Rogue Special Mode None Game No. 527 Rogue 527 Adventurer 0 Explorer 0 Win Type - Total 114 Types 78/7/8/10/5/1/4/0/1 Lore% 71 Gallery% 81 Achievement% 82 Wizard Run 0 Options --------- Layout 1 ASCII 0 Keyboard 0 Movement Numpad Keybinds 0 Fullscreen 1 Font 24/Smallcaps Map View 50x35 Zoom Use 0% Tactical HUD 1 Map Filters NONE Filters NONE Steam 1 RUN: 3343c547-3ab2-4178-87ca-691fd6e78615